Workbook

Sheet ملخص الموازنة الشهرية
B1: اسم الشركة
B2: موازنة شهرية | E2: التاريخ
B4: إجماليات الموازنة | C4: مُقدر | D4: الفعلي | E4: الفرق
B5: الدخل | C5: =الدخل[[#Totals],[مُقدر]] -> 63,300.00 | D5: =الدخل[[#Totals],[الفعلي]] -> 57,450.00 | E5: =الإجماليات[[#This Row],[الفعلي]]-الإجماليات[[#This Row],[مُقدر]] -> -5,850.00
B6: المصروفات | C6: =مصاريف_التشغيل[[#Totals],[مُقدر]]+مصاريف_الموظفين[[#Totals],[مُقدر]] -> 54,500.00 | D6: =مصاريف_التشغيل[[#Totals],[الفعلي]]+مصاريف_الموظفين[[#Totals],[الفعلي]] -> 49,630.00 | E6: =الإجماليات[[#This Row],[مُقدر]]-الإجماليات[[#This Row],[الفعلي]] -> 4,870.00
B7: الرصيد (الدخل ناقص المصاريف) | C7: =C5-C6 -> 8,800.00 | D7: =D5-D6 -> 7,820.00 | E7: =الإجماليات[[#Totals],[الفعلي]]-الإجماليات[[#Totals],[مُقدر]] -> -980.00
B10: ما هي أعلى 5 مصروفات تشغيل؟
B11: المصروفات | C11: المبلغ | D11: % من المصروفات | E11: تخفيض بنسبة 15%
B12: =INDEX(مصاريف_التشغيل[],MATCH(أعلى_5_مصروفات[[#This Row],[المبلغ]],مصاريف_التشغيل[أعلى 5 مبالغ],0),1) -> الصيانة والإصلاحات | C12: =LARGE(مصاريف_التشغيل[أعلى 5 مبالغ],1) -> 4,600.00 | D12: =أعلى_5_مصروفات[[#This Row],[المبلغ]]/$D$6 -> 9.3% | E12: =أعلى_5_مصروفات[[#This Row],[المبلغ]]*0.15 -> 690.00
B13: =INDEX(مصاريف_التشغيل[],MATCH(أعلى_5_مصروفات[[#This Row],[المبلغ]],مصاريف_التشغيل[أعلى 5 مبالغ],0),1) -> المستلزمات | C13: =LARGE(مصاريف_التشغيل[أعلى 5 مبالغ],2) -> 4,500.00 | D13: =أعلى_5_مصروفات[[#This Row],[المبلغ]]/$D$6 -> 9.1% | E13: =أعلى_5_مصروفات[[#This Row],[المبلغ]]*0.15 -> 675.00
B14: =INDEX(مصاريف_التشغيل[],MATCH(أعلى_5_مصروفات[[#This Row],[المبلغ]],مصاريف_التشغيل[أعلى 5 مبالغ],0),1) -> الإيجار أو الرهن | C14: =LARGE(مصاريف_التشغيل[أعلى 5 مبالغ],3) -> 4,500.00 | D14: =أعلى_5_مصروفات[[#This Row],[المبلغ]]/$D$6 -> 9.1% | E14: =أعلى_5_مصروفات[[#This Row],[المبلغ]]*0.15 -> 675.00
B15: =INDEX(مصاريف_التشغيل[],MATCH(أعلى_5_مصروفات[[#This Row],[المبلغ]],مصاريف_التشغيل[أعلى 5 مبالغ],0),1) -> الضرائب | C15: =LARGE(مصاريف_التشغيل[أعلى 5 مبالغ],4) -> 3,200.00 | D15: =أعلى_5_مصروفات[[#This Row],[المبلغ]]/$D$6 -> 6.4% | E15: =أعلى_5_مصروفات[[#This Row],[المبلغ]]*0.15 -> 480.00
B16: =INDEX(مصاريف_التشغيل[],MATCH(أعلى_5_مصروفات[[#This Row],[المبلغ]],مصاريف_التشغيل[أعلى 5 مبالغ],0),1) -> الإعلانات | C16: =LARGE(مصاريف_التشغيل[أعلى 5 مبالغ],5) -> 2,500.00 | D16: =أعلى_5_مصروفات[[#This Row],[المبلغ]]/$D$6 -> 5.0% | E16: =أعلى_5_مصروفات[[#This Row],[المبلغ]]*0.15 -> 375.00
B17: الإجمالي | C17: =SUBTOTAL(109,أعلى_5_مصروفات[المبلغ]) -> 19,300.00 | D17: =SUBTOTAL(109,أعلى_5_مصروفات[% من المصروفات]) -> 38.9% | E17: =SUBTOTAL(109,أعلى_5_مصروفات[تخفيض بنسبة 15%]) -> 2,895.00

Sheet الدخل
B1: =اسم_الشركة -> اسم الشركة
B2: =BUDGET_Title -> موازنة شهرية
B4: الدخل | C4: مُقدر | D4: الفعلي | E4: أعلى 5 مبالغ | F4: الفرق
B5: صافي المبيعات | C5: 60,000.00 | D5: 54,000.00 | E5: =الدخل[[#This Row],[الفعلي]]+(10^-6)*ROW(الدخل[[#This Row],[الفعلي]]) -> 54,000.00 | F5: =الدخل[[#This Row],[الفعلي]]-الدخل[[#This Row],[مُقدر]] -> -6,000.00
B6: الدخل من الفائدة | C6: 3,000.00 | D6: 3,000.00 | E6: =الدخل[[#This Row],[الفعلي]]+(10^-6)*ROW(الدخل[[#This Row],[الفعلي]]) -> 3,000.00 | F6: =الدخل[[#This Row],[الفعلي]]-الدخل[[#This Row],[مُقدر]] -> 0.00
B7: مبيعات الأصول (الربح/الخسارة) | C7: 300.00 | D7: 450.00 | E7: =الدخل[[#This Row],[الفعلي]]+(10^-6)*ROW(الدخل[[#This Row],[الفعلي]]) -> 450.00 | F7: =الدخل[[#This Row],[الفعلي]]-الدخل[[#This Row],[مُقدر]] -> 150.00
B8: إجمالي الدخل | C8: =SUBTOTAL(109,الدخل[مُقدر]) -> 63,300.00 | D8: =SUBTOTAL(109,الدخل[الفعلي]) -> 57,450.00 | F8: =SUBTOTAL(109,الدخل[الفرق]) -> -5,850.00

Sheet المصروفات الشخصية
B1: =اسم_الشركة -> اسم الشركة
B2: =BUDGET_Title -> موازنة شهرية
B4: المصروفات الشخصية | C4: مُقدر | D4: الفعلي | E4: أعلى 5 مبالغ | F4: الفرق
B5: الأجور | C5: 9,500.00 | D5: 9,600.00 | E5: =مصاريف_الموظفين[[#This Row],[الفعلي]]+(10^-6)*ROW(مصاريف_الموظفين[[#This Row],[الفعلي]]) -> 9,600.00 | F5: =مصاريف_الموظفين[[#This Row],[مُقدر]]-مصاريف_الموظفين[[#This Row],[الفعلي]] -> -100.00
B6: مزايا الموظف | C6: 4,000.00 | D6: 0.00 | E6: =مصاريف_الموظفين[[#This Row],[الفعلي]]+(10^-6)*ROW(مصاريف_الموظفين[[#This Row],[الفعلي]]) -> 0.00 | F6: =مصاريف_الموظفين[[#This Row],[مُقدر]]-مصاريف_الموظفين[[#This Row],[الفعلي]] -> 4,000.00
B7: العمولة | C7: 5,000.00 | D7: 4,500.00 | E7: =مصاريف_الموظفين[[#This Row],[الفعلي]]+(10^-6)*ROW(مصاريف_الموظفين[[#This Row],[الفعلي]]) -> 4,500.00 | F7: =مصاريف_الموظفين[[#This Row],[مُقدر]]-مصاريف_الموظفين[[#This Row],[الفعلي]] -> 500.00
B8: إجمالي المصروفات الشخصية | C8: =SUBTOTAL(109,مصاريف_الموظفين[مُقدر]) -> 18,500.00 | D8: =SUBTOTAL(109,مصاريف_الموظفين[الفعلي]) -> 14,100.00 | F8: =SUBTOTAL(109,مصاريف_الموظفين[الفرق]) -> 4,400.00

Sheet المصروفات التشغيلية
B1: =اسم_الشركة -> اسم الشركة
B2: =BUDGET_Title -> موازنة شهرية
B4: المصروفات التشغيلية | C4: مُقدر | D4: الفعلي | E4: أعلى 5 مبالغ | F4: الفرق
B5: الإعلانات | C5: 3,000.00 | D5: 2,500.00 | E5: =مصاريف_التشغيل[[#This Row],[الفعلي]]+(10^-6)*ROW(مصاريف_التشغيل[[#This Row],[الفعلي]]) -> 2,500.00 | F5: =مصاريف_التشغيل[[#This Row],[مُقدر]]-مصاريف_التشغيل[[#This Row],[الفعلي]] -> 500.00
B6: الديون المعدومة | C6: 2,000.00 | D6: 2,000.00 | E6: =مصاريف_التشغيل[[#This Row],[الفعلي]]+(10^-6)*ROW(مصاريف_التشغيل[[#This Row],[الفعلي]]) -> 2,000.00 | F6: =مصاريف_التشغيل[[#This Row],[مُقدر]]-مصاريف_التشغيل[[#This Row],[الفعلي]] -> 0.00
B7: الخصومات النقدية | C7: 1,500.00 | D7: 2,175.00 | E7: =مصاريف_التشغيل[[#This Row],[الفعلي]]+(10^-6)*ROW(مصاريف_التشغيل[[#This Row],[الفعلي]]) -> 2,175.00 | F7: =مصاريف_التشغيل[[#This Row],[مُقدر]]-مصاريف_التشغيل[[#This Row],[الفعلي]] -> -675.00
B8: تكاليف التسليم | C8: 2,000.00 | D8: 1,500.00 | E8: =مصاريف_التشغيل[[#This Row],[الفعلي]]+(10^-6)*ROW(مصاريف_التشغيل[[#This Row],[الفعلي]]) -> 1,500.00 | F8: =مصاريف_التشغيل[[#This Row],[مُقدر]]-مصاريف_التشغيل[[#This Row],[الفعلي]] -> 500.00
B9: الإهلاك | C9: 1,000.00 | D9: 1,000.00 | E9: =مصاريف_التشغيل[[#This Row],[الفعلي]]+(10^-6)*ROW(مصاريف_التشغيل[[#This Row],[الفعلي]]) -> 1,000.00 | F9: =مصاريف_التشغيل[[#This Row],[مُقدر]]-مصاريف_التشغيل[[#This Row],[الفعلي]] -> 0.00
B10: الاستحقاقات والاشتراكات | C10: 500.00 | D10: 525.00 | E10: =مصاريف_التشغيل[[#This Row],[الفعلي]]+(10^-6)*ROW(مصاريف_التشغيل[[#This Row],[الفعلي]]) -> 525.00 | F10: =مصاريف_التشغيل[[#This Row],[مُقدر]]-مصاريف_التشغيل[[#This Row],[الفعلي]] -> -25.00
B11: التأمين | C11: 1,300.00 | D11: 1,275.00 | E11: =مصاريف_التشغيل[[#This Row],[الفعلي]]+(10^-6)*ROW(مصاريف_التشغيل[[#This Row],[الفعلي]]) -> 1,275.00 | F11: =مصاريف_التشغيل[[#This Row],[مُقدر]]-مصاريف_التشغيل[[#This Row],[الفعلي]] -> 25.00
B12: الفائدة | C12: 2,000.00 | D12: 2,200.00 | E12: =مصاريف_التشغيل[[#This Row],[الفعلي]]+(10^-6)*ROW(مصاريف_التشغيل[[#This Row],[الفعلي]]) -> 2,200.00 | F12: =مصاريف_التشغيل[[#This Row],[مُقدر]]-مصاريف_التشغيل[[#This Row],[الفعلي]] -> -200.00
B13: القانونية ومراجعة الحسابات | C13: 1,000.00 | D13: 800.00 | E13: =مصاريف_التشغيل[[#This Row],[الفعلي]]+(10^-6)*ROW(مصاريف_التشغيل[[#This Row],[الفعلي]]) -> 800.00 | F13: =مصاريف_التشغيل[[#This Row],[مُقدر]]-مصاريف_التشغيل[[#This Row],[الفعلي]] -> 200.00
B14: الصيانة والإصلاحات | C14: 4,500.00 | D14: 4,600.00 | E14: =مصاريف_التشغيل[[#This Row],[الفعلي]]+(10^-6)*ROW(مصاريف_التشغيل[[#This Row],[الفعلي]]) -> 4,600.00 | F14: =مصاريف_التشغيل[[#This Row],[مُقدر]]-مصاريف_التشغيل[[#This Row],[الفعلي]] -> -100.00
B15: مستلزمات المكتب | C15: 800.00 | D15: 750.00 | E15: =مصاريف_التشغيل[[#This Row],[الفعلي]]+(10^-6)*ROW(مصاريف_التشغيل[[#This Row],[الفعلي]]) -> 750.00 | F15: =مصاريف_التشغيل[[#This Row],[مُقدر]]-مصاريف_التشغيل[[#This Row],[الفعلي]] -> 50.00
B16: رسوم البريد | C16: 400.00 | D16: 350.00 | E16: =مصاريف_التشغيل[[#This Row],[الفعلي]]+(10^-6)*ROW(مصاريف_التشغيل[[#This Row],[الفعلي]]) -> 350.00 | F16: =مصاريف_التشغيل[[#This Row],[مُقدر]]-مصاريف_التشغيل[[#This Row],[الفعلي]] -> 50.00
B17: الإيجار أو الرهن | C17: 4,100.00 | D17: 4,500.00 | E17: =مصاريف_التشغيل[[#This Row],[الفعلي]]+(10^-6)*ROW(مصاريف_التشغيل[[#This Row],[الفعلي]]) -> 4,500.00 | F17: =مصاريف_التشغيل[[#This Row],[مُقدر]]-مصاريف_التشغيل[[#This Row],[الفعلي]] -> -400.00
B18: مصروفات المبيعات | C18: 350.00 | D18: 400.00 | E18: =مصاريف_التشغيل[[#This Row],[الفعلي]]+(10^-6)*ROW(مصاريف_التشغيل[[#This Row],[الفعلي]]) -> 400.00 | F18: =مصاريف_التشغيل[[#This Row],[مُقدر]]-مصاريف_التشغيل[[#This Row],[الفعلي]] -> -50.00
B19: الشحن والتخزين | C19: 900.00 | D19: 840.00 | E19: =مصاريف_التشغيل[[#This Row],[الفعلي]]+(10^-6)*ROW(مصاريف_التشغيل[[#This Row],[الفعلي]]) -> 840.00 | F19: =مصاريف_التشغيل[[#This Row],[مُقدر]]-مصاريف_التشغيل[[#This Row],[الفعلي]] -> 60.00
B20: المستلزمات | C20: 5,000.00 | D20: 4,500.00 | E20: =مصاريف_التشغيل[[#This Row],[الفعلي]]+(10^-6)*ROW(مصاريف_التشغيل[[#This Row],[الفعلي]]) -> 4,500.00 | F20: =مصاريف_التشغيل[[#This Row],[مُقدر]]-مصاريف_التشغيل[[#This Row],[الفعلي]] -> 500.00
B21: الضرائب | C21: 3,000.00 | D21: 3,200.00 | E21: =مصاريف_التشغيل[[#This Row],[الفعلي]]+(10^-6)*ROW(مصاريف_التشغيل[[#This Row],[الفعلي]]) -> 3,200.00 | F21: =مصاريف_التشغيل[[#This Row],[مُقدر]]-مصاريف_التشغيل[[#This Row],[الفعلي]] -> -200.00
B22: الهاتف | C22: 250.00 | D22: 280.00 | E22: =مصاريف_التشغيل[[#This Row],[الفعلي]]+(10^-6)*ROW(مصاريف_التشغيل[[#This Row],[الفعلي]]) -> 280.00 | F22: =مصاريف_التشغيل[[#This Row],[مُقدر]]-مصاريف_التشغيل[[#This Row],[الفعلي]] -> -30.00
B23: المرافق | C23: 1,400.00 | D23: 1,385.00 | E23: =مصاريف_التشغيل[[#This Row],[الفعلي]]+(10^-6)*ROW(مصاريف_التشغيل[[#This Row],[الفعلي]]) -> 1,385.00 | F23: =مصاريف_التشغيل[[#This Row],[مُقدر]]-مصاريف_التشغيل[[#This Row],[الفعلي]] -> 15.00
B24: أخرى | C24: 1,000.00 | D24: 750.00 | E24: =مصاريف_التشغيل[[#This Row],[الفعلي]]+(10^-6)*ROW(مصاريف_التشغيل[[#This Row],[الفعلي]]) -> 750.00 | F24: =مصاريف_التشغيل[[#This Row],[مُقدر]]-مصاريف_التشغيل[[#This Row],[الفعلي]] -> 250.00
B25: إجمالي المصروفات التشغيلية | C25: =SUBTOTAL(109,مصاريف_التشغيل[مُقدر]) -> 36,000.00 | D25: =SUBTOTAL(109,مصاريف_التشغيل[الفعلي]) -> 35,530.00 | F25: =SUBTOTAL(109,مصاريف_التشغيل[الفرق]) -> 470.00
